fUSD/lending_fUSD_20250427
["ID","MTS","AMOUNT","RATE_DAILY","PERIOD"]
[359129048,1745724646675,-400.0,0.00019661,2]
[359129049,1745724646685,-400.0,0.00019661,2]
[359129050,1745724646695,-151.0,0.00019661,2]
[359129051,1745724646704,-151.0,0.00019661,2]
[359129052,1745724646714,-151.0,0.00019661,2]
[359129053,1745724646723,-186.05848223,0.00019661,2]
[359129054,1745724646750,-64.26314977,0.00019661,2]
[359129055,1745724646760,-400.0,0.00019661,2]
[359129056,1745724646770,-400.0,0.00019661,2]
[359129057,1745724646779,-151.0,0.00019661,2]
[359129058,1745724646789,-277.658489,0.00019661,2]
[359129059,1745724646799,-154.646823,0.00019661,2]
[359129060,1745724646809,-400.0,0.00019661,2]
[359129061,1745724646818,-400.0,0.00019661,2]
[359129062,1745724646828,-400.0,0.00019661,2]
[359129063,1745724646838,-400.0,0.00019661,2]
[359129064,1745724646848,-771.75564431,0.00019661,2]
[359129065,1745724646864,-177.68435569,0.00019661,2]
[359129066,1745724646875,-400.0,0.00019661,2]
[359129067,1745724646885,-400.0,0.00019661,2]
[359129068,1745724646895,-400.0,0.00019661,2]
[359129069,1745724646905,-400.0,0.00019661,2]
[359129070,1745724646915,-400.0,0.00019661,2]
[359129071,1745724646924,-207.4,0.00019661,2]
[359129072,1745724646934,-151.0,0.00019661,2]
[359129073,1745724646944,-400.0,0.00019661,2]
[359129074,1745724646954,-151.0,0.00019661,2]
[359129075,1745724646964,-400.0,0.00019661,2]
[359129076,1745724646974,-400.0,0.00019661,2]
[359129077,1745724646984,-400.0,0.00019661,2]
[359129078,1745724646994,-400.0,0.00019661,2]
[359129079,1745724647004,-426.31,0.00019661,2]
[359129080,1745724647013,-400.0,0.00019661,2]
[359129081,1745724647023,-400.0,0.00019661,2]
[359129082,1745724647033,-400.0,0.00019661,2]
[359129083,1745724647043,-745.98,0.00019661,2]
[359129084,1745724647053,-400.0,0.00019661,2]
[359129085,1745724647063,-151.0,0.00019661,2]
[359129086,1745724647073,-152.611813,0.00019661,2]
[359129087,1745724647083,-267.78872931,0.00019661,2]
[359129088,1745724685620,234.0,0.00036986,60]
[359129090,1745724844427,180.0,0.00036986,60]
[359129091,1745724888478,1000.0,0.00018717,2]
[359129092,1745724936128,168.008436,0.00036384,60]
[359129093,1745724960868,250.0,0.00018789,2]
[359129094,1745725146731,173.21,0.00019178,2]
[359129095,1745725147525,338.19,0.00016769,2]
[359129096,1745725147686,338.19,0.00019033,2]
[359129097,1745725321799,2430.47,0.0003,30]
[359129098,1745725378396,2329.2,0.0003,30]
[359129099,1745725400354,200.0,0.00018881,2]
[359129100,1745725449791,273.63002822,0.00019661,18]
[359129101,1745725458024,152.0,0.0003,32]
[359129102,1745725458345,152.0,0.00029817,31]
[359129103,1745725458640,152.0,0.00029633,30]
[359129104,1745725504865,2329.2,0.00036986,60]
[359129112,1745725661044,2329.2,0.00036986,60]
[359129123,1745725832491,-200.0,0.00019554,2]
[359129124,1745725832502,-129.76386651,0.00019554,2]
[359129125,1745725832543,-120.23613349,0.00019554,2]
[359129126,1745725832553,-1215.48187706,0.00019561,2]
[359129230,1745725838266,-97.2648512,0.00019561,2]
[359129231,1745725838277,-1642.72431686,0.00019561,2]
[359129232,1745725838287,-200.0,0.0001957,2]
[359129233,1745725838298,-250.0,0.0001957,2]
[359129234,1745725838308,-192.2413367,0.00019574,2]
[359129235,1745725838318,-1200.0,0.00019598,2]
[359129236,1745725838328,-300.0,0.00019598,2]
[359129237,1745725838339,-1312.74672825,0.00019599,2]
[359129238,1745725838348,-1642.72431684,0.00019599,2]
[359129239,1745725838358,-1312.74672825,0.00019636,2]
[359129240,1745725838367,-1642.72431684,0.00019636,2]
[359129241,1745725838377,-207.4,0.00019649,2]
[359129242,1745725838387,-400.0,0.00019659,2]
[359129243,1745725838397,-13176.22680506,0.0001966,2]
[359129244,1745725838408,-3790.94306442,0.0001966,2]
[359129245,1745725838418,-400.0,0.0001966,2]
[359129246,1745725838427,-400.0,0.0001966,2]
[359129247,1745725838437,-400.0,0.0001966,2]
[359129248,1745725838446,-400.0,0.0001966,2]
[359129249,1745725838455,-400.0,0.0001966,2]
[359129250,1745725838465,-400.0,0.0001966,2]
[359129251,1745725838474,-400.0,0.0001966,2]
[359129252,1745725838484,-400.0,0.0001966,2]
[359129253,1745725838493,-400.0,0.0001966,2]
[359129254,1745725838504,-400.0,0.0001966,2]
[359129255,1745725838513,-400.0,0.0001966,2]
[359129256,1745725838523,-400.0,0.0001966,2]
[359129257,1745725838533,-400.0,0.0001966,2]
[359129258,1745725838542,-400.0,0.0001966,2]
[359129259,1745725838552,-1634.97687558,0.0001966,2]
[359129260,1745725838565,-10251.01831342,0.0001966,2]
[359129261,1745725838574,-427.11,0.0001966,2]
[359129262,1745725838584,-427.210811,0.0001966,2]
[359129263,1745725838594,-400.0,0.0001966,2]
[359129264,1745725838605,-400.0,0.0001966,2]
[359129265,1745725838614,-218.008875,0.0001966,2]
[359129266,1745725838624,-400.0,0.0001966,2]
[359129267,1745725838634,-400.0,0.0001966,2]
[359129268,1745725838644,-400.0,0.0001966,2]
[359129269,1745725838654,-400.0,0.0001966,2]
[359129270,1745725838664,-400.0,0.0001966,2]
[359129271,1745725838673,-207.85200059,0.0001966,2]
[359129274,1745725838705,-192.14799941,0.0001966,2]
[359129276,1745725838715,-400.0,0.0001966,2]
[359129278,1745725838729,-400.0,0.0001966,2]
[359129280,1745725838739,-400.0,0.0001966,2]
[359129282,1745725838748,-308.17578849,0.0001966,2]
[359129285,1745725838760,-217.84024772,0.0001966,2]
[359129286,1745725838772,-182.91164926,0.0001966,2]
[359129288,1745725838782,-400.0,0.0001966,2]
[359129290,1745725838793,-400.0,0.0001966,2]
[359129292,1745725838804,-400.0,0.0001966,2]
[359129294,1745725838814,-421.5,0.0001966,2]
[359129296,1745725838824,-13.51353102,0.0001966,2]
[359129300,1745725838835,-179.74976657,0.0001966,2]
[359129302,1745725838845,-400.0,0.0001966,2]
[359129304,1745725838855,-400.0,0.0001966,2]
[359129307,1745725838865,-400.0,0.0001966,2]
[359129309,1745725838874,-400.0,0.0001966,2]
[359129311,1745725838884,-392.77861143,0.0001966,2]
[359129313,1745725838896,-517.10138857,0.0001966,2]
[359129315,1745725838907,-400.0,0.0001966,2]
[359129317,1745725838917,-400.0,0.0001966,2]
[359129319,1745725838928,-400.0,0.0001966,2]
[359129321,1745725838937,-335.10381143,0.0001966,2]
[359129323,1745725838949,-64.89618857,0.0001966,2]
[359129325,1745725838958,-400.0,0.0001966,2]
[359129326,1745725838968,-400.0,0.0001966,2]
[359129328,1745725838978,-400.0,0.0001966,2]
[359129330,1745725838987,-798.67997143,0.0001966,2]
[359129495,1745725840768,-529.99068435,0.0001966,2]
[359129978,1745725845835,-182.84934422,0.0001966,2]
[359129979,1745725845850,-400.0,0.0001966,2]
[359129980,1745725845865,-250.0,0.0001966,2]
[359129981,1745725845879,-400.0,0.0001966,2]
[359129982,1745725845889,-400.0,0.0001966,2]
[359129983,1745725845900,-400.0,0.0001966,2]
[359129984,1745725845910,-400.0,0.0001966,2]
[359129985,1745725845921,-400.0,0.0001966,2]
[359129986,1745725845934,-400.0,0.0001966,2]
[359129987,1745725845946,-400.0,0.0001966,2]
[359129988,1745725845958,-432.68,0.0001966,2]
[359129989,1745725845971,-400.0,0.0001966,2]
[359129990,1745725845981,-400.0,0.0001966,2]
[359129991,1745725845993,-400.0,0.0001966,2]
[359129992,1745725846004,-488.67,0.0001966,2]
[359129994,1745725846015,-400.0,0.0001966,2]
[359129996,1745725846028,-400.0,0.0001966,2]
[359129998,1745725846039,-400.0,0.0001966,2]
[359129999,1745725846051,-400.0,0.0001966,2]
[359130000,1745725846067,-400.0,0.0001966,2]
[359130002,1745725846079,-400.0,0.0001966,2]
[359130003,1745725846090,-408.54,0.0001966,2]
[359130005,1745725846102,-400.0,0.0001966,2]
[359130007,1745725846113,-400.0,0.0001966,2]
[359130008,1745725846125,-21.44076808,0.0001966,2]
[359130017,1745725846675,-378.55923192,0.0001966,2]
[359130018,1745725846687,-400.0,0.0001966,2]
[359130019,1745725846699,-714.89,0.0001966,2]
[359130020,1745725846711,-400.0,0.0001966,2]
[359130021,1745725846723,-400.0,0.0001966,2]
[359130022,1745725846738,-597.08,0.0001966,2]
[359130023,1745725846750,-396.10744538,0.0001966,2]
[359130024,1745725846764,-83.04255462,0.0001966,2]
[359130025,1745725846778,-400.0,0.0001966,2]
[359130026,1745725846789,-400.0,0.0001966,2]
[359130027,1745725846802,-400.0,0.0001966,2]
[359130028,1745725846813,-400.0,0.0001966,2]
[359130029,1745725846825,-206.85970538,0.0001966,2]
[359130031,1745725846845,-362.89029462,0.0001966,2]
[359130032,1745725846857,-400.0,0.0001966,2]
[359130033,1745725846868,-1561.75,0.0001966,2]
[359130034,1745725846880,-400.0,0.0001966,2]
[359130036,1745725846891,-400.0,0.0001966,2]
[359130038,1745725846903,-400.0,0.0001966,2]
[359130040,1745725846915,-400.0,0.0001966,2]
[359130043,1745725846927,-400.0,0.0001966,2]
[359130045,1745725846938,-527.2,0.0001966,2]
[359130047,1745725846950,-400.0,0.0001966,2]
[359130049,1745725846961,-400.0,0.0001966,2]
[359130051,1745725846973,-400.0,0.0001966,2]
[359130053,1745725846984,-424.07738707,0.0001966,2]
[359130056,1745725846998,-70.41261293,0.0001966,2]
[359130058,1745725847010,-400.0,0.0001966,2]
[359130060,1745725847021,-400.0,0.0001966,2]
[359130063,1745725847035,-400.0,0.0001966,2]
[359130065,1745725847046,-400.0,0.0001966,2]
[359130067,1745725847058,-1379.94,0.0001966,2]
[359130069,1745725847069,-512.42,0.0001966,2]
[359130071,1745725847081,-400.0,0.0001966,2]
[359130074,1745725847092,-400.0,0.0001966,2]
[359130076,1745725847103,-400.0,0.0001966,2]
[359130078,1745725847114,-400.0,0.0001966,2]
[359130080,1745725847126,-400.0,0.0001966,2]
[359130082,1745725847138,-400.0,0.0001966,2]
[359130084,1745725847149,-400.0,0.0001966,2]
[359130087,1745725847161,-400.0,0.0001966,2]
[359130089,1745725847173,-400.0,0.0001966,2]
[359130091,1745725847184,-400.0,0.0001966,2]
[359130093,1745725847195,-400.0,0.0001966,2]
[359130095,1745725847206,-400.0,0.0001966,2]
[359130097,1745725847218,-400.0,0.0001966,2]
[359130100,1745725847230,-400.0,0.0001966,2]
[359130102,1745725847242,-400.0,0.0001966,2]
[359130104,1745725847254,-400.0,0.0001966,2]
[359130106,1745725847265,-587.25,0.0001966,2]
[359130108,1745725847277,-400.0,0.0001966,2]
[359130111,1745725847289,-2596.87,0.0001966,2]
[359130113,1745725847301,-400.0,0.0001966,2]
[359130115,1745725847313,-431.45,0.0001966,2]
[359130117,1745725847325,-400.0,0.0001966,2]
[359130119,1745725847336,-400.0,0.0001966,2]
[359130122,1745725847347,-400.0,0.0001966,2]
[359130124,1745725847359,-516.94,0.0001966,2]
[359130126,1745725847370,-485.87,0.0001966,2]
[359130128,1745725847382,-400.0,0.0001966,2]
[359130130,1745725847393,-400.0,0.0001966,2]
[359130132,1745725847405,-833.11,0.0001966,2]
[359130135,1745725847420,-400.0,0.0001966,2]
[359130137,1745725847432,-400.0,0.0001966,2]
[359130139,1745725847443,-9842.63438366,0.0001966,2]
[359130142,1745725847458,-20386.52753663,0.0001966,2]
[359130145,1745725847483,-5444.76606561,0.0001966,2]
[359130147,1745725847496,-3851.27602168,0.0001966,2]
[359130187,1745725925875,250.0,0.00017,2]
[359130188,1745725926942,300.0,0.00019,2]
[359130189,1745726079833,3661.51,0.00036986,60]
[359130190,1745726105770,11311.09,0.00019,2]
[359130191,1745726161433,173.21,0.00019178,2]
[359130192,1745726176730,250.0,0.00018673,2]
[359130193,1745726303059,190.71,0.00018675,2]
[359130194,1745726313027,327.8,0.0001676,2]
[359130195,1745726313457,327.8,0.00019024,2]
[359130196,1745726344952,1000.0,0.00018675,2]
[359130197,1745726381222,160.3,0.00019301,2]
[359130209,1745726856087,5038.15679507,0.0003698,60]
[359130210,1745726874245,582.0,0.00036986,60]
[359130214,1745727021537,165.83,0.00019257,2]
[359130234,1745727039813,-918.92270982,0.0001956,2]
[359130235,1745727039824,-1149.90702186,0.0001956,2]
[359130236,1745727039835,-200.0,0.0001956,2]
[359130237,1745727039845,-200.0,0.0001956,2]
[359130238,1745727039854,-250.0,0.0001956,2]
[359130239,1745727039863,-200.0,0.00019564,2]
[359130240,1745727039873,-182.6292699,0.00019574,2]
[359130241,1745727039883,-267.19456948,0.00019596,2]
[359130242,1745727040157,-549.5039024,0.00019596,2]
[359130245,1745727042670,-383.30152812,0.00019596,2]
[359130246,1745727042680,-300.0,0.00019597,2]
[359130247,1745727042689,-300.0,0.00019597,2]
[359130248,1745727042699,-918.92270977,0.00019598,2]
[359130249,1745727042709,-1149.90702178,0.00019598,2]
[359130250,1745727042718,-918.92270977,0.00019636,2]
[359130251,1745727042728,-1149.90702178,0.00019636,2]
[359130252,1745727042738,-207.4,0.00019648,2]
[359130253,1745727042748,-400.0,0.00019658,2]
[359130254,1745727042758,-400.0,0.00019658,2]
[359130255,1745727042767,-400.0,0.00019658,2]
[359130256,1745727042777,-400.0,0.00019658,2]
[359130257,1745727042787,-400.0,0.00019658,2]
[359130258,1745727042797,-400.0,0.00019658,2]
[359130259,1745727042806,-400.0,0.00019658,2]
[359130260,1745727042816,-400.0,0.00019658,2]
[359130261,1745727042827,-495.4,0.00019658,2]
[359130262,1745727042836,-400.0,0.00019658,2]
[359130263,1745727042846,-400.0,0.00019658,2]
[359130264,1745727042855,-400.0,0.00019658,2]
[359130265,1745727042865,-400.0,0.00019658,2]
[359130266,1745727042876,-400.0,0.00019658,2]
[359130267,1745727042885,-400.0,0.00019658,2]
[359130268,1745727042895,-444.27,0.00019658,2]
[359130269,1745727042905,-400.0,0.00019658,2]
[359130270,1745727042915,-400.0,0.00019658,2]
[359130274,1745727043135,-3738.32,0.00019658,2]
[359130275,1745727043146,-400.0,0.00019658,2]
[359130276,1745727043156,-400.0,0.00019658,2]
[359130277,1745727043166,-400.0,0.00019658,2]
[359130278,1745727043176,-400.0,0.00019658,2]
[359130279,1745727043186,-400.0,0.00019658,2]
[359130280,1745727043196,-408.87,0.00019658,2]
[359130281,1745727043207,-1330.58,0.00019658,2]
[359130282,1745727043217,-218.008876,0.00019658,2]
[359130283,1745727043227,-400.0,0.00019658,2]
[359130284,1745727043237,-400.0,0.00019658,2]
[359130285,1745727043246,-400.0,0.00019658,2]
[359130286,1745727043256,-400.0,0.00019658,2]
[359130287,1745727043266,-489.65,0.00019658,2]
[359130288,1745727043281,-11885.99519,0.00019658,2]
[359130289,1745727043291,-400.0,0.00019658,2]
[359130290,1745727043302,-400.0,0.00019658,2]
[359130291,1745727043313,-400.0,0.00019658,2]
[359130292,1745727043323,-400.0,0.00019658,2]
[359130293,1745727043333,-400.0,0.00019658,2]
[359130294,1745727043344,-400.0,0.00019658,2]
[359130295,1745727043355,-19336.42544415,0.00019659,2]
[359130296,1745727043366,-249.06357987,0.00019659,2]
[359130297,1745727043376,-427.210811,0.00019659,2]
[359130298,1745727043387,-512.6472628,0.00019659,2]
[359130299,1745727043396,-409.8867286,0.00019659,2]
[359130300,1745727043406,-400.0,0.00019659,2]
[359130301,1745727043416,-400.0,0.00019659,2]
[359130302,1745727043426,-400.0,0.00019659,2]
[359130303,1745727043436,-403.94,0.00019659,2]
[359130304,1745727043445,-400.0,0.00019659,2]
[359130305,1745727043455,-400.0,0.00019659,2]
[359130306,1745727043464,-400.0,0.00019659,2]
[359130307,1745727043474,-400.0,0.00019659,2]
[359130308,1745727043484,-400.0,0.00019659,2]
[359130309,1745727043494,-400.0,0.00019659,2]
[359130310,1745727043504,-332.7068457,0.00019659,2]
[359130311,1745727043514,-400.0,0.00019659,2]
[359130312,1745727043523,-400.0,0.00019659,2]
[359130313,1745727043534,-400.0,0.00019659,2]
[359130314,1745727043545,-250.0,0.00019659,2]
[359130315,1745727043851,-400.0,0.00019659,2]
[359130316,1745727043862,-400.0,0.00019659,2]
[359130317,1745727043873,-400.0,0.00019659,2]
[359130318,1745727043892,-400.0,0.00019659,2]
[359130319,1745727043907,-400.0,0.00019659,2]
[359130320,1745727043919,-400.0,0.00019659,2]
[359130321,1745727043929,-400.0,0.00019659,2]
[359130322,1745727043940,-400.0,0.00019659,2]
[359130323,1745727043949,-400.0,0.00019659,2]
[359130324,1745727043959,-400.0,0.00019659,2]
[359130325,1745727043970,-400.0,0.00019659,2]
[359130326,1745727043979,-400.0,0.00019659,2]
[359130327,1745727043990,-400.0,0.00019659,2]
[359130328,1745727044000,-400.0,0.00019659,2]
[359130329,1745727044009,-400.0,0.00019659,2]
[359130330,1745727044020,-400.0,0.00019659,2]
[359130331,1745727044029,-400.0,0.00019659,2]
[359130332,1745727044040,-572.89,0.00019659,2]
[359130333,1745727044049,-572.21,0.00019659,2]
[359130334,1745727044060,-400.0,0.00019659,2]
[359130335,1745727044070,-409.31,0.00019659,2]
[359130336,1745727044080,-400.0,0.00019659,2]
[359130337,1745727044090,-532.31,0.00019659,2]
[359130338,1745727044101,-400.0,0.00019659,2]
[359130339,1745727044111,-400.0,0.00019659,2]
[359130340,1745727044122,-400.0,0.00019659,2]
[359130341,1745727044135,-400.0,0.00019659,2]
[359130342,1745727044146,-151.0,0.00019659,2]
[359130343,1745727044156,-400.0,0.00019659,2]
[359130344,1745727044166,-151.0,0.00019659,2]
[359130345,1745727044177,-151.0,0.00019659,2]
[359130346,1745727044187,-151.0,0.00019659,2]
[359130347,1745727044198,-400.0,0.00019659,2]
[359130348,1745727044209,-221.52120442,0.00019659,2]
[359130349,1745727044219,-157.195855,0.00019659,2]
[359130350,1745727044229,-400.0,0.00019659,2]
[359130351,1745727044239,-299.485638,0.00019659,2]
[359130352,1745727044249,-353.65378136,0.00019659,2]
[359130353,1745727044260,-400.0,0.00019659,2]
[359130354,1745727044270,-400.0,0.00019659,2]
[359130355,1745727044280,-400.0,0.00019659,2]
[359130356,1745727044290,-165.883618,0.00019659,2]
[359130357,1745727044300,-400.0,0.00019659,2]
[359130358,1745727044310,-400.0,0.00019659,2]
[359130359,1745727044326,-400.0,0.00019659,2]
[359130360,1745727044336,-465.62,0.00019659,2]
[359130361,1745727044347,-400.0,0.00019659,2]
[359130362,1745727044357,-325.084708,0.00019659,2]
[359130363,1745727044367,-325.084708,0.00019659,2]
[359130364,1745727044377,-325.084708,0.00019659,2]
[359130365,1745727044388,-325.084708,0.00019659,2]
[359130366,1745727044399,-325.084708,0.00019659,2]
[359130367,1745727044410,-400.0,0.00019659,2]
[359130368,1745727044420,-151.0,0.00019659,2]
[359130369,1745727044430,-400.0,0.00019659,2]
[359130370,1745727044440,-151.0,0.00019659,2]
[359130371,1745727044451,-152.00591,0.00019659,2]
[359130372,1745727044461,-400.0,0.00019659,2]
[359130373,1745727044471,-400.0,0.00019659,2]
[359130374,1745727044481,-400.0,0.00019659,2]
[359130375,1745727044491,-582.94,0.00019659,2]
[359130376,1745727044502,-636.05,0.00019659,2]
[359130377,1745727044512,-400.0,0.00019659,2]
[359130378,1745727044523,-321.810716,0.00019659,2]
[359130379,1745727044533,-400.0,0.00019659,2]
[359130380,1745727044543,-321.810716,0.00019659,2]
[359130381,1745727044554,-321.810716,0.00019659,2]
[359130382,1745727044564,-321.810716,0.00019659,2]
[359130383,1745727044574,-400.0,0.00019659,2]
[359130384,1745727044585,-321.810716,0.00019659,2]
[359130385,1745727044595,-321.810716,0.00019659,2]
[359130386,1745727044605,-321.810716,0.00019659,2]
[359130387,1745727044615,-321.810716,0.00019659,2]
[359130388,1745727044626,-151.0,0.00019659,2]
[359130389,1745727044636,-151.0,0.00019659,2]
[359130390,1745727044646,-151.0,0.00019659,2]
[359130391,1745727044657,-151.0,0.00019659,2]
[359130392,1745727044666,-400.0,0.00019659,2]
[359130393,1745727044676,-400.0,0.00019659,2]
[359130394,1745727044685,-449.15,0.00019659,2]
[359130395,1745727044695,-151.0,0.00019659,2]
[359130396,1745727044705,-151.0,0.00019659,2]
[359130397,1745727044714,-151.0,0.00019659,2]
[359130398,1745727044724,-151.0,0.00019659,2]
[359130399,1745727044734,-151.0,0.00019659,2]
[359130400,1745727044743,-151.0,0.00019659,2]
[359130401,1745727044752,-151.0,0.00019659,2]
[359130402,1745727044762,-151.0,0.00019659,2]
[359130403,1745727044777,-400.0,0.00019659,2]
[359130404,1745727044788,-400.0,0.00019659,2]
[359130405,1745727044798,-400.0,0.00019659,2]
[359130406,1745727044808,-423.54983805,0.00019659,2]
[359130407,1745727044819,-154.934296,0.00019659,2]
[359130408,1745727044829,-151.0,0.00019659,2]
[359130409,1745727044839,-400.0,0.00019659,2]
[359130410,1745727044848,-151.0,0.00019659,2]
[359130411,1745727044858,-151.0,0.00019659,2]
[359130412,1745727044868,-151.0,0.00019659,2]
[359130413,1745727044878,-151.0,0.00019659,2]
[359130414,1745727044888,-151.0,0.00019659,2]
[359130415,1745727044898,-151.0,0.00019659,2]
[359130416,1745727044909,-151.0,0.00019659,2]
[359130417,1745727044920,-172.577302,0.00019659,2]
[359130418,1745727044932,-400.0,0.00019659,2]
[359130419,1745727044942,-400.0,0.00019659,2]
[359130420,1745727044952,-151.0,0.00019659,2]
[359130421,1745727044961,-151.0,0.00019659,2]
[359130422,1745727044971,-151.0,0.00019659,2]
[359130423,1745727044981,-151.289904,0.00019659,2]
[359130424,1745727044991,-165.048173,0.00019659,2]
[359130425,1745727045001,-400.0,0.00019659,2]
[359130426,1745727045011,-243.3510045,0.00019659,2]
[359130427,1745727045021,-400.0,0.00019659,2]
[359130428,1745727045031,-151.124006,0.00019659,2]
[359130429,1745727045041,-155.222919,0.00019659,2]
[359130430,1745727045052,-152.547646,0.00019659,2]
[359130431,1745727045063,-538.85,0.00019659,2]
[359130432,1745727045072,-400.0,0.00019659,2]
[359130433,1745727045082,-162.343329,0.00019659,2]
[359130434,1745727045092,-400.0,0.00019659,2]
[359130435,1745727045101,-151.0,0.00019659,2]
[359130436,1745727045111,-400.0,0.00019659,2]
[359130437,1745727045121,-151.0,0.00019659,2]
[359130438,1745727045134,-151.0,0.00019659,2]
[359130439,1745727045144,-151.0,0.00019659,2]
[359130440,1745727045154,-151.0,0.00019659,2]
[359130441,1745727045164,-267.860822,0.00019659,2]
[359130442,1745727045175,-400.0,0.00019659,2]
[359130443,1745727045184,-151.0,0.00019659,2]
[359130444,1745727045194,-181.845449,0.00019659,2]
[359130445,1745727045209,-400.0,0.00019659,2]
[359130446,1745727045218,-400.0,0.00019659,2]
[359130447,1745727045228,-400.0,0.00019659,2]
[359130448,1745727045240,-151.0,0.00019659,2]
[359130449,1745727045251,-400.0,0.00019659,2]
[359130450,1745727045264,-151.0,0.00019659,2]
[359130451,1745727045276,-151.0,0.00019659,2]
[359130452,1745727045286,-155.637385,0.00019659,2]
[359130453,1745727045297,-400.0,0.00019659,2]
[359130454,1745727045307,-151.0,0.00019659,2]
[359130455,1745727045318,-151.0,0.00019659,2]
[359130456,1745727045328,-151.0,0.00019659,2]
[359130457,1745727045340,-151.0,0.00019659,2]
[359130458,1745727045350,-151.0,0.00019659,2]
[359130459,1745727045360,-151.0,0.00019659,2]
[359130460,1745727045369,-151.0,0.00019659,2]
[359130461,1745727045380,-151.0,0.00019659,2]
[359130462,1745727045390,-157.295581,0.00019659,2]
[359130463,1745727045400,-151.0,0.00019659,2]
[359130464,1745727045410,-151.0,0.00019659,2]
[359130465,1745727045420,-155.953852,0.00019659,2]
[359130466,1745727045430,-400.0,0.00019659,2]
[359130467,1745727045440,-400.0,0.00019659,2]
[359130468,1745727045450,-400.0,0.00019659,2]
[359130469,1745727045462,-690.3,0.00019659,2]
[359130470,1745727045472,-400.0,0.00019659,2]
[359130471,1745727045482,-400.0,0.00019659,2]
[359130472,1745727045492,-156.546587,0.00019659,2]
[359130473,1745727045502,-406.19,0.00019659,2]
[359130474,1745727045512,-400.0,0.00019659,2]
[359130475,1745727045522,-400.0,0.00019659,2]
[359130476,1745727045532,-400.0,0.00019659,2]
[359130477,1745727045542,-400.0,0.00019659,2]
[359130478,1745727045553,-151.0,0.00019659,2]
[359130479,1745727045562,-154.168834,0.00019659,2]
[359130480,1745727045572,-400.0,0.00019659,2]
[359130481,1745727045582,-151.0,0.00019659,2]
[359130482,1745727045592,-156.71331,0.00019659,2]
[359130483,1745727045602,-400.0,0.00019659,2]
[359130484,1745727045612,-591.06,0.00019659,2]
[359130485,1745727045622,-400.0,0.00019659,2]
[359130486,1745727045632,-400.0,0.00019659,2]
[359130487,1745727045652,-400.0,0.00019659,2]
[359130488,1745727045664,-468.31,0.00019659,2]
[359130489,1745727045676,-400.0,0.00019659,2]
[359130490,1745727045688,-400.0,0.00019659,2]
[359130491,1745727045700,-400.0,0.00019659,2]
[359130492,1745727045711,-400.0,0.00019659,2]
[359130493,1745727045723,-400.0,0.00019659,2]
[359130494,1745727045736,-400.0,0.00019659,2]
[359130495,1745727045749,-400.0,0.00019659,2]
[359130496,1745727045760,-400.0,0.00019659,2]
[359130497,1745727045770,-400.0,0.00019659,2]
[359130498,1745727045782,-844.209936,0.00019659,2]
[359130499,1745727045794,-844.209936,0.00019659,2]